bitfinex/quotes_SOLUSD_20250625
["timestamp","ask_amount","ask_price","bid_price","bid_amount"]
[1750828179796,5.54232075,145.69,145.64,18.30841055]
[1750828180421,6.86360502,145.7,145.64,18.30841055]
[1750828180642,5.54232075,145.71,145.67,5.54232075]
[1750828180933,5.54232075,145.73,145.69,5.54232075]
[1750828181517,5.54232075,145.73,145.68,5.54232075]
[1750828181831,5.54232075,145.73,145.66,18.64964886]
[1750828182033,5.54232075,145.73,145.68,5.54232075]
[1750828182530,5.54232075,145.73,145.68,12.40642937]
[1750828185734,5.54232075,145.73,145.68,6.86410862]
[1750828185906,5.54232075,145.73,145.68,12.40642937]
[1750828187433,12.40445883,145.73,145.68,12.40642937]
[1750828187727,5.54232075,145.72,145.68,12.40642937]
[1750828189130,5.54232075,145.72,145.67,5.54232075]
[1750828189436,5.54232075,145.71,145.67,6.86452669]
[1750828191734,5.54232075,145.71,145.66,25.51495161]
[1750828191914,5.54232075,145.71,145.66,31.05727236]
[1750828192740,5.54232075,145.7,145.65,6.86561811]
[1750828192921,5.54232075,145.69,145.64,18.30837677]
[1750828193240,5.54232075,145.69,145.65,5.54232075]
[1750828193435,5.54232075,145.7,145.66,5.54232075]
[1750828193948,5.54232075,145.7,145.66,6.86522947]
[1750828196047,5.54232075,145.69,145.64,5.9]
[1750828196218,5.54232075,145.69,145.64,11.44232075]
[1750828196418,5.54232075,145.69,145.64,18.30837523]
[1750828196627,5.54232075,145.68,145.64,18.30837523]
[1750828196846,5.54232075,145.68,145.64,11.44232075]
[1750828197141,6.2075,145.7,145.64,11.44232075]
[1750828197316,5.54232075,145.68,145.64,11.44232075]
[1750828197513,5.54232075,145.68,145.64,18.30856524]
[1750828199942,5.54232075,145.68,145.64,11.44232075]
[1750828200115,12.40669096,145.68,145.64,5.9]
[1750828200436,5.54232075,145.66,145.64,5.9]
[1750828200744,5.54232075,145.66,145.62,31.05906313]
[1750828201127,5.54232075,145.65,145.61,6.86749797]
[1750828202434,6.86494718,145.67,145.61,12.40981872]
[1750828202634,5.54232075,145.66,145.61,12.40981872]
[1750828202949,5.54232075,145.66,145.61,6.86749797]
[1750828203134,5.54232075,145.66,145.62,5.54232075]
[1750828204352,12.40764952,145.66,145.62,5.54232075]
[1750828206559,5.54232075,145.63,145.59,38.76848022]
[1750828206869,5.54232075,145.62,145.59,5.9]
[1750828207049,5.54232075,145.62,145.57,12.41169955]
[1750828207437,5.54232075,145.62,145.58,5.54232075]
[1750828207951,5.54232075,145.62,145.58,12.41126378]
[1750828208854,5.54232075,145.61,145.57,12.41168162]
[1750828209154,5.54232075,145.61,145.57,5.54232075]
[1750828209343,5.54232075,145.6,145.56,31.06187996]
[1750828209656,5.54232075,145.6,145.56,31.06197817]
[1750828210030,5.54232075,145.6,145.56,25.51965742]
[1750828210432,5.54232075,145.6,145.56,31.06197817]
[1750828211631,5.54232075,145.59,145.55,5.9]
[1750828212533,12.94422243,145.6,145.55,18.31275568]
[1750828212741,5.54232075,145.59,145.55,18.31275568]
[1750828213962,12.41097157,145.59,145.55,11.44232075]
[1750828214651,5.54232075,145.59,145.55,18.31279934]
[1750828215358,5.54232075,145.59,145.55,11.44232075]
[1750828215536,5.54232075,145.59,145.55,18.31276792]
[1750828215733,5.54232075,145.58,145.55,5.9]
[1750828215956,5.54232075,145.59,145.55,5.9]
[1750828217035,12.94417484,145.6,145.55,18.31264472]
[1750828217348,5.54232075,145.59,145.55,11.44232075]
[1750828217939,12.94417484,145.6,145.55,11.44232075]
[1750828218135,5.54232075,145.59,145.55,11.44232075]
[1750828220154,5.54232075,145.59,145.55,18.31273737]
[1750828221270,5.54232075,145.59,145.55,12.77041662]
[1750828221464,5.54232075,145.59,145.55,18.31273737]
[1750828226667,172.2,145.63,145.58,5.54232075]
[1750828226882,177.74232075,145.63,145.58,5.54232075]
[1750828227669,172.2,145.63,145.58,5.54232075]
[1750828227875,5.54232075,145.62,145.58,6.86906438]
[1750828228053,5.54232075,145.62,145.57,12.41159215]
[1750828229550,5.54232075,145.62,145.58,5.54232075]
[1750828230174,5.54232075,145.6,145.57,6.8692714]
[1750828230777,5.54232075,145.59,145.56,6.86983818]
[1750828231957,5.54232075,145.59,145.55,18.31266913]
[1750828232365,5.54232075,145.58,145.55,5.9]
[1750828233269,1.5668,145.6,145.55,5.9]
[1750828233487,5.54232075,145.58,145.55,5.9]
[1750828235769,8.43509854,145.6,145.55,5.9]
[1750828235975,5.54232075,145.59,145.55,5.9]
[1750828236174,5.54232075,145.59,145.55,11.44232075]
[1750828236380,5.54232075,145.59,145.55,5.9]
[1750828237294,8.43509854,145.6,145.55,12.7703556]
[1750828237476,5.54232075,145.59,145.55,18.31267635]
[1750828239382,5.54232075,145.59,145.55,12.7703556]
[1750828239597,5.54232075,145.59,145.55,5.9]
[1750828239895,12.41102352,145.59,145.55,5.9]
[1750828240781,5.54232075,145.59,145.55,12.7703623]
[1750828240975,6.86735119,145.62,145.55,18.31268305]
[1750828241176,12.40967194,145.62,145.58,5.54232075]
[1750828241493,12.40967194,145.62,145.57,5.54232075]
[1750828241693,6.86735119,145.62,145.57,12.41169631]
[1750828241893,5.54232075,145.62,145.58,5.54232075]
[1750828243192,5.54232075,145.62,145.58,6.86898482]
[1750828243988,32.86681152,145.63,145.58,6.86898482]
[1750828244194,5.54232075,145.62,145.58,6.86898482]
[1750828244800,5.54232075,145.62,145.58,12.41130557]
[1750828247904,5.54232075,145.61,145.57,5.54232075]
[1750828248282,5.54232075,145.62,145.58,5.54232075]
[1750828249201,5.54232075,145.61,145.56,25.51966809]
[1750828249417,5.54232075,145.61,145.56,31.06198884]
[1750828252394,5.54232075,145.6,145.56,12.41233998]
[1750828253700,5.54232075,145.61,145.56,12.41233998]
[1750828254281,5.54232075,145.61,145.56,6.87001923]
[1750828254485,5.54232075,145.61,145.57,5.54232075]
[1750828254686,5.54232075,145.61,145.57,12.41160949]
[1750828255507,5.54232075,145.61,145.57,6.86928874]
[1750828255700,5.54232075,145.61,145.57,5.54232075]
[1750828256304,5.54232075,145.61,145.56,12.41233998]
[1750828257011,5.54232075,145.6,145.56,12.41233998]
[1750828258494,5.54232075,145.6,145.56,6.87001923]
[1750828258687,5.54232075,145.6,145.56,12.41233998]
[1750828260913,5.54232075,145.6,145.55,12.77029357]
[1750828260914,5.54232075,145.59,145.55,12.77029357]
[1750828261124,5.54232075,145.58,145.55,5.9]
[1750828261285,5.54232075,145.58,145.54,5.54232075]
[1750828261490,5.54232075,145.58,145.54,6.87069458]
[1750828261707,6.86815039,145.6,145.54,12.41301533]
[1750828262018,5.54232075,145.59,145.55,5.54232075]
[1750828262685,5.54232075,145.59,145.55,12.41272829]
[1750828263103,5.54232075,145.58,145.55,6.87040754]
[1750828263513,5.54232075,145.59,145.55,6.87040754]
[1750828263813,5.54232075,145.59,145.55,12.41272829]
[1750828264412,6.86773222,145.61,145.56,5.54232075]
[1750828264612,5.54232075,145.6,145.56,5.54232075]
[1750828264818,5.54232075,145.6,145.55,6.87040754]
[1750828264993,5.54232075,145.6,145.56,5.54232075]
[1750828265195,36.68236647,145.62,145.57,5.54232075]
[1750828265396,31.54232075,145.62,145.58,5.54232075]
[1750828266111,5.54232075,145.61,145.57,5.54232075]
[1750828266420,5.54232075,145.61,145.57,12.41170868]
[1750828268389,28.62,145.65,145.57,12.41170868]
[1750828268390,5.54232075,145.65,145.6,5.54232075]
[1750828268595,5.13921445,145.64,145.61,5.54232075]
[1750828268797,5.13897096,145.64,145.61,5.54232075]
[1750828269101,5.13897105,145.64,145.6,5.54232075]
[1750828269300,10.6812918,145.64,145.6,5.54232075]
[1750828269500,5.54232075,145.64,145.6,5.54232075]
[1750828270199,10.68050303,145.64,145.6,5.54232075]
[1750828271118,5.54232075,145.64,145.6,5.54232075]
[1750828271316,5.54232075,145.64,145.6,12.41044424]
[1750828271513,179.06533566,145.66,145.6,12.41044424]
[1750828271825,6.39937932,145.7,145.63,5.54232075]
[1750828272005,36.67946044,145.69,145.64,5.54232075]
[1750828272314,5.13713969,145.68,145.64,5.54232075]
[1750828272522,5.13713969,145.67,145.64,5.54232075]
[1750828272700,5.13713969,145.68,145.64,5.54232075]
[1750828272905,5.13713969,145.68,145.62,18.64964886]
[1750828272906,5.13464578,145.69,145.66,5.54232075]
[1750828273493,17.5404111,145.7,145.66,5.54232075]
[1750828275116,17.5404111,145.7,145.65,5.54232075]
[1750828275326,12.40576532,145.7,145.65,5.54232075]
[1750828275827,5.54232075,145.69,145.65,5.54232075]
[1750828276122,5.54232075,145.69,145.64,5.54232075]
[1750828277211,6.86436024,145.68,145.64,5.54232075]
[1750828279536,6.86436024,145.68,145.65,5.54232075]
[1750828285341,6.86436024,145.68,145.62,25.51655898]
[1750828285516,12.40668099,145.68,145.64,5.54232075]
[1750828286030,6.86436024,145.68,145.65,5.54232075]
[1750828287535,6.86436024,145.68,145.63,6.8667089]
[1750828287726,6.86436024,145.68,145.65,5.54232075]
[1750828293251,6.86341798,145.7,145.65,5.54232075]
[1750828293446,5.54232075,145.69,145.65,5.54232075]
[1750828296452,6.86436024,145.68,145.65,5.54232075]
[1750828298255,6.86341798,145.7,145.65,3.55383825]
[1750828298448,3.55383825,145.69,145.65,3.55383825]
[1750828299755,6.86341798,145.7,145.65,3.55383825]
[1750828299933,6.86436024,145.68,145.65,3.55383825]
[1750828302962,6.86341798,145.7,145.66,3.55383825]
[1750828303140,36.41685843,145.71,145.67,3.55383825]
[1750828303341,32.86302018,145.71,145.68,3.55383825]
[1750828304049,36.41685843,145.71,145.67,3.55383825]
[1750828304558,3.55383825,145.7,145.66,3.55383825]
[1750828304734,3.55383825,145.69,145.64,22.20348711]
[1750828306137,3.55383825,145.69,145.65,3.55383825]
[1750828306337,12.41680036,145.7,145.65,5.55296734]
[1750828307147,6.86383302,145.7,145.65,5.55296734]
[1750828307445,12.41680036,145.7,145.66,5.55296734]
[1750828310864,6.86383302,145.7,145.66,5.55296734]
[1750828311066,5.55296734,145.7,145.66,12.41826236]
[1750828311772,12.41644861,145.7,145.66,5.55296734]
[1750828313352,17.55008997,145.7,145.66,5.55296734]
[1750828314269,12.41644861,145.7,145.65,6.86564762]
[1750828314474,12.41644861,145.7,145.65,12.41861496]
[1750828316356,5.14102287,145.69,145.65,12.41861496]
[1750828316558,12.41644861,145.7,145.65,12.41861496]
[1750828316868,12.00499036,145.69,145.65,5.55296734]
[1750828317061,6.86396749,145.69,145.65,5.55296734]
[1750828317669,5.55296734,145.68,145.63,5.55296734]
[1750828319257,5.55296734,145.68,145.64,5.55296734]
[1750828320169,12.41736786,145.68,145.64,5.55296734]
[1750828321095,12.41736786,145.68,145.63,18.64964886]
[1750828321252,5.55296734,145.66,145.62,25.5167808]
[1750828321453,5.55296734,145.65,145.61,18.64964886]
[1750828322573,5.55296734,145.65,145.61,5.55296734]
[1750828323685,5.55296734,145.66,145.62,5.55296734]
[1750828323988,8.42985427,145.7,145.65,5.55296734]
[1750828324282,10.69238953,145.69,145.65,5.55296734]
[1750828324572,5.13942219,145.68,145.64,5.55296734]
[1750828324781,8.42985427,145.7,145.64,5.55296734]
[1750828324951,17.55641274,145.69,145.64,5.55296734]
[1750828325153,12.41699698,145.69,145.64,5.55296734]
[1750828325552,5.13947705,145.68,145.64,5.55296734]
[1750828325775,5.13943306,145.68,145.64,5.55296734]
[1750828326277,12.41699698,145.69,145.64,5.55296734]
[1750828326480,5.13944084,145.68,145.64,5.55296734]
[1750828326657,12.41699698,145.69,145.64,12.41914344]
[1750828326864,5.13944084,145.68,145.64,12.41914344]
[1750828327064,12.41699698,145.69,145.64,12.41914344]
[1750828327367,5.13949975,145.68,145.64,12.41914344]
[1750828327564,12.41699698,145.69,145.64,12.41914344]
[1750828327764,5.13947186,145.68,145.65,5.55296734]
[1750828328064,12.41699698,145.69,145.65,5.55296734]
[1750828329180,13.98286909,145.7,145.65,12.41861162]
[1750828329377,5.13915917,145.69,145.65,12.41861162]
[1750828329680,13.98286909,145.7,145.65,12.41861162]
[1750828329883,5.13912652,145.69,145.65,12.41861162]
[1750828330180,13.98286909,145.7,145.65,12.41861162]
[1750828330374,5.13897695,145.69,145.65,12.41861162]
[1750828330573,13.98286909,145.7,145.65,12.41861162]
[1750828330763,10.69193531,145.69,145.65,12.41861162]
[1750828330962,8.42990175,145.7,145.65,12.41861162]
[1750828331162,10.69194317,145.69,145.65,12.41861162]
[1750828331366,5.55296734,145.69,145.65,12.41861162]
[1750828331681,8.42990175,145.7,145.66,5.55296734]
[1750828331878,13.98286909,145.7,145.66,5.55296734]
[1750828332263,8.42990175,145.7,145.66,5.55296734]
[1750828332467,13.98286909,145.7,145.65,12.41861162]
[1750828335082,13.98286909,145.7,145.65,18.64964886]
[1750828335290,13.98286909,145.7,145.65,24.2026162]
[1750828335993,12.41656909,145.7,145.65,24.2026162]
[1750828336694,12.41656909,145.7,145.66,5.55296734]
[1750828338995,5.13922159,145.69,145.65,25.51499691]
[1750828339223,12.41656909,145.7,145.66,5.55296734]
[1750828339390,5.13923976,145.69,145.66,5.55296734]
[1750828339580,6.86360175,145.7,145.66,5.55296734]
[1750828339780,5.13923989,145.69,145.66,5.55296734]
[1750828340098,32.2497,145.71,145.67,5.55296734]
[1750828340273,8.03255061,145.73,145.69,5.55296734]
[1750828340274,6.8621249,145.73,145.69,5.55296734]
[1750828340476,5.13839567,145.72,145.69,5.55296734]
[1750828340675,5.13839567,145.71,145.67,18.64964886]
[1750828340909,5.13814007,145.72,145.69,5.55296734]
[1750828341088,12.41509224,145.73,145.69,5.55296734]
[1750828341402,26.0,145.74,145.7,5.55296734]
[1750828341403,5.55296734,145.74,145.7,5.55296734]
[1750828341603,5.1367918,145.73,145.7,5.55296734]
[1750828341902,12.41419266,145.75,145.7,5.55296734]
[1750828342079,5.13658782,145.74,145.7,12.41595831]
[1750828342278,12.41419266,145.75,145.7,12.41595831]
[1750828342492,5.13460609,145.74,145.7,12.41595831]
[1750828342796,5.13434508,145.74,145.72,5.55296734]
[1750828343002,5.55296734,145.76,145.72,5.55296734]
[1750828343003,5.13434508,145.75,145.72,5.55296734]
[1750828343169,5.55296734,145.76,145.72,5.55296734]
[1750828343494,5.13170249,145.75,145.72,5.55296734]
[1750828344179,5.55296734,145.76,145.74,5.55296734]
[1750828344180,5.13170249,145.76,145.74,5.55296734]
[1750828344387,10.68466983,145.79,145.74,5.55296734]
[1750828344600,5.13170249,145.78,145.74,5.55296734]
[1750828344780,5.13170249,145.78,145.75,5.55296734]
[1750828345100,5.13170249,145.79,145.75,5.55296734]
[1750828345289,10.68466983,145.8,145.75,5.55296734]
[1750828345478,10.68466983,145.8,145.76,5.55296734]
[1750828345895,5.55296734,145.8,145.76,5.55296734]
[1750828346194,5.55296734,145.8,145.75,12.41396218]
[1750828346982,12.41188718,145.8,145.75,5.55296734]
[1750828347201,5.55296734,145.76,145.71,31.55296734]
[1750828347493,5.55296734,145.76,145.72,24.2026162]
[1750828348300,5.55296734,145.76,145.72,31.06499741]
[1750828350207,5.55296734,145.77,145.72,31.06499741]
[1750828351003,38.4122781,145.79,145.75,5.55296734]
[1750828351175,17.54352313,145.8,145.75,5.55296734]
[1750828351381,12.41182064,145.8,145.75,5.55296734]
[1750828352113,6.8588533,145.8,145.74,5.55296734]
[1750828352298,12.41218374,145.79,145.74,12.41439938]
[1750828352482,6.8592164,145.79,145.74,12.41439938]
[1750828353003,5.55296734,145.76,145.72,24.2026162]
[1750828354107,6.85984366,145.78,145.73,12.41495971]
[1750828354303,5.55296734,145.77,145.73,5.55296734]
[1750828355606,12.41312461,145.77,145.73,5.55296734]
[1750828355908,12.41312461,145.77,145.72,31.06493662]
[1750828356314,5.55296734,145.76,145.7,6.86341798]
[1750828356497,5.55296734,145.75,145.71,5.55296734]
[1750828357788,12.41444273,145.75,145.71,5.55296734]
[1750828358713,5.55296734,145.74,145.7,5.55296734]
[1750828360015,12.41452205,145.74,145.7,5.55296734]
[1750828361225,6.1936,145.77,145.7,12.41626479]
[1750828361407,5.55296734,145.74,145.7,12.41626479]
[1750828361715,5.55296734,145.74,145.7,6.86329745]
[1750828361919,5.55296734,145.74,145.7,5.55296734]
[1750828362216,5.55296734,145.75,145.71,5.55296734]
[1750828363222,5.55296734,145.75,145.7,5.55296734]
[1750828363895,12.41442318,145.75,145.71,5.55296734]
[1750828364918,5.55296734,145.73,145.67,26.0]
[1750828365102,5.55296734,145.7,145.66,5.55296734]
[1750828365511,5.55296734,145.71,145.67,5.55296734]
[1750828366222,12.41611253,145.71,145.66,12.41821668]
[1750828367016,5.55296734,145.7,145.66,12.41821668]
[1750828368528,5.55296734,145.74,145.69,5.55296734]
[1750828369818,12.41467559,145.74,145.69,5.55296734]
[1750828370821,5.55296734,145.73,145.69,5.55296734]
[1750828371901,12.41503445,145.73,145.69,5.55296734]
[1750828372198,12.41503445,145.73,145.68,12.41690044]
[1750828372398,5.55296734,145.71,145.67,31.06735265]
[1750828372628,5.55296734,145.71,145.67,5.55296734]
[1750828373926,12.4160189,145.71,145.67,5.55296734]
[1750828374802,12.4160189,145.71,145.67,12.41777404]
[1750828374803,5.55296734,145.71,145.67,12.41777404]
[1750828375804,6.86256604,145.72,145.67,12.41777404]
[1750828376011,5.55296734,145.72,145.67,12.41777404]
[1750828376213,5.55296734,145.72,145.68,5.55296734]
[1750828377030,5.55296734,145.72,145.68,12.417098]
[1750828379820,5.55296734,145.73,145.68,12.417098]
[1750828380023,5.11844149,145.75,145.69,5.55296734]
[1750828380218,159.53176734,145.77,145.72,5.55296734]
[1750828380429,159.53176734,145.77,145.71,5.55296734]
[1750828380430,10.67121492,145.76,145.71,5.55296734]
[1750828380614,5.55296734,145.76,145.71,5.55296734]
[1750828380808,159.53176734,145.77,145.73,5.55296734]
[1750828381011,146.2,145.77,145.73,5.55296734]
[1750828381237,22.45095645,145.78,145.73,5.55296734]
[1750828381440,22.45095645,145.78,145.74,12.41435959]
[1750828382111,29.31062389,145.78,145.74,6.86139225]
[1750828382311,29.31062389,145.78,145.73,12.41481128]
[1750828382614,55.31062389,145.78,145.73,12.41481128]
[1750828382814,5.55296734,145.77,145.73,12.41481128]
[1750828385134,5.55296734,145.76,145.72,12.41525479]
[1750828387244,6.86016933,145.77,145.72,12.41525479]
[1750828387536,12.41313667,145.77,145.72,12.41525479]
[1750828387913,12.41313667,145.77,145.73,5.55296734]
[1750828388108,55.31079894,145.78,145.73,5.55296734]
[1750828388338,42.89798911,145.78,145.74,5.55296734]
[1750828388642,48.45095645,145.78,145.74,5.55296734]
[1750828389025,55.31066487,145.78,145.73,5.55296734]
[1750828389324,49.75769753,145.78,145.73,5.55296734]
[1750828389525,48.45095645,145.78,145.74,5.55296734]
[1750828389927,42.89798911,145.78,145.74,12.41411085]
[1750828390644,16.89798911,145.78,145.76,5.55296734]
[1750828393331,16.89798911,145.78,145.75,12.41367183]
[1750828394541,16.89798911,145.78,145.75,6.86070449]
[1750828395032,16.89798911,145.78,145.75,5.55296734]
[1750828395234,16.89798911,145.78,145.74,18.64964886]
[1750828395437,16.89798911,145.78,145.75,5.55296734]
[1750828397031,16.89798911,145.78,145.75,12.41381915]
[1750828404251,16.89798911,145.78,145.75,5.55296734]
[1750828404751,16.89798911,145.78,145.75,12.41401608]
[1750828412258,5.55296734,145.77,145.73,6.86200507]
[1750828412458,5.55296734,145.77,145.72,5.55296734]
[1750828412639,22.45095645,145.78,145.73,5.55296734]
[1750828412840,22.45095645,145.78,145.74,5.55296734]
[1750828413334,29.31064387,145.78,145.74,5.55296734]
[1750828413535,12.41265476,145.78,145.74,5.55296734]
[1750828413752,5.55296734,145.78,145.74,12.41447053]
[1750828415758,12.41230664,145.79,145.74,12.41447053]
[1750828416738,12.41230664,145.79,145.75,5.55296734]
[1750828417658,5.11578196,145.8,145.77,5.55296734]
[1750828417855,34.0723,145.81,145.78,5.55296734]
[1750828420660,32.4499,145.81,145.78,5.55296734]
[1750828422542,15.85816962,145.86,145.8,5.55296734]
[1750828422751,15.85816962,145.86,145.83,5.55296734]
[1750828423648,21.41113696,145.86,145.81,5.55296734]
[1750828425157,5.55296734,145.85,145.81,5.55296734]
[1750828426966,28.26704503,145.86,145.81,5.55296734]
[1750828428272,5.55296734,145.84,145.8,5.55296734]
[1750828428650,31.55296734,145.85,145.8,5.55296734]
[1750828428854,5.55296734,145.84,145.8,5.55296734]
[1750828431074,38.40971099,145.85,145.81,5.55296734]
[1750828431274,26.0,145.85,145.82,5.55296734]
[1750828431466,31.55296734,145.85,145.81,5.55296734]
[1750828431671,5.55296734,145.84,145.8,5.55296734]
[1750828432457,5.55296734,145.82,145.75,6.86106346]
[1750828432676,5.55296734,145.82,145.76,5.55296734]
[1750828432677,5.55296734,145.8,145.76,5.55296734]
[1750828433063,5.55296734,145.8,145.75,12.4140308]
[1750828433259,5.55296734,145.79,145.74,12.41437619]
[1750828433462,5.55296734,145.78,145.74,12.41437619]
[1750828434278,5.55296734,145.78,145.73,6.06]
[1750828434468,11.84256734,145.78,145.73,18.47483786]
[1750828435576,6.2896,145.78,145.76,5.55296734]
[1750828435771,6.2896,145.78,145.75,5.55296734]
[1750828436083,11.84256734,145.78,145.74,5.55296734]
[1750828436482,18.70238864,145.78,145.73,18.47483786]
[1750828436778,13.1494213,145.78,145.73,18.47483786]
[1750828436959,18.70238864,145.78,145.74,5.55296734]
[1750828437572,18.70238864,145.78,145.73,18.47483786]
[1750828438259,18.70238864,145.78,145.73,12.92187052]
[1750828438454,18.70238864,145.78,145.74,5.55296734]
[1750828438681,11.84256734,145.78,145.74,12.4144577]
[1750828439383,6.2896,145.78,145.74,12.4144577]
[1750828439612,6.2896,145.78,145.75,5.55296734]
[1750828439767,1.6283,145.79,145.76,5.55296734]
[1750828439965,6.5443,145.81,145.78,5.55296734]
[1750828440167,6.5443,145.81,145.79,5.55296734]
[1750828440389,8.381056,145.83,145.77,6.86012211]
[1750828440573,8.381056,145.83,145.79,5.55296734]
[1750828440574,13.93402334,145.83,145.79,5.55296734]
[1750828440885,7.07666734,145.83,145.79,5.55296734]
[1750828442686,1.5237,145.83,145.79,5.55296734]
[1750828442866,7.07666734,145.83,145.79,5.55296734]
[1750828444183,5.55296734,145.81,145.71,17.15627503]
[1750828444383,5.55296734,145.8,145.75,5.55296734]
[1750828444791,5.55296734,145.79,145.75,5.55296734]
[1750828444993,5.55296734,145.79,145.74,31.06370787]
[1750828445183,5.55296734,145.8,145.75,5.55296734]
[1750828447186,12.41168483,145.8,145.75,12.41380379]
[1750828448286,31.11405811,145.82,145.75,12.41380379]
[1750828448287,5.55296734,145.79,145.75,12.41380379]
[1750828450780,5.55296734,145.8,145.75,12.41380379]
[1750828453494,5.55296734,145.8,145.76,5.55296734]
[1750828454284,5.55296734,145.79,145.75,12.41380379]
[1750828455590,5.55296734,145.8,145.75,12.41380379]
[1750828455784,5.55296734,145.8,145.76,5.55296734]
[1750828457395,5.55296734,145.8,145.76,12.41348226]
[1750828459280,12.41173591,145.8,145.76,12.41348226]
[1750828459899,12.41173591,145.8,145.76,5.55296734]
[1750828460083,19.05423591,145.8,145.75,12.41384942]
[1750828461777,5.55296734,145.79,145.75,12.41384942]
[1750828463183,5.55296734,145.79,145.75,5.55296734]
[1750828463184,12.41220105,145.79,145.75,5.55296734]
[1750828463682,12.41220105,145.79,145.74,12.41432621]
[1750828466491,12.41220105,145.79,145.75,5.55296734]
[1750828466698,12.41220105,145.79,145.75,12.41403063]
[1750828468185,5.55296734,145.77,145.73,5.55296734]
[1750828468785,5.55296734,145.77,145.72,5.55296734]
[1750828469189,5.55296734,145.76,145.72,12.41528598]
[1750828470297,12.41343668,145.77,145.72,6.86231864]
[1750828470497,12.41343668,145.77,145.72,12.41528598]
[1750828472693,5.55296734,145.75,145.7,6.86331009]
[1750828472907,11.84876734,145.75,145.7,12.41627743]
[1750828473793,18.71007586,145.75,145.7,12.41627743]
[1750828475123,5.55296734,145.74,145.7,5.55296734]
[1750828475692,5.55296734,145.72,145.68,5.55296734]
[1750828476601,12.41573629,145.72,145.68,5.55296734]
[1750828476902,12.41573629,145.72,145.67,18.47762246]
[1750828478399,5.55296734,145.71,145.67,18.47762246]
[1750828479819,5.55296734,145.71,145.67,12.41762246]
[1750828480027,5.55296734,145.72,145.68,5.55296734]
[1750828480728,6.65054662,145.74,145.7,5.55296734]
[1750828480902,1.5334,145.74,145.7,5.55296734]
[1750828481101,1.5334,145.74,145.68,18.64964886]
[1750828481102,7.08636734,145.74,145.67,6.86465512]
[1750828481321,5.55296734,145.72,145.67,12.41762246]
[1750828481626,5.55296734,145.71,145.67,12.41762246]
[1750828481839,5.55296734,145.72,145.67,12.41762246]
[1750828482832,12.41558002,145.72,145.67,12.41762246]
[1750828485334,12.41558002,145.72,145.68,5.55296734]
[1750828485519,5.55296734,145.72,145.68,5.55296734]
[1750828485904,5.55296734,145.73,145.68,6.86428888]
[1750828486106,1.5334,145.74,145.72,5.55296734]
[1750828486412,6.2958,145.75,145.72,5.55296734]
[1750828487135,6.2958,145.75,145.71,5.55296734]
[1750828487515,6.2958,145.75,145.71,12.41570525]
[1750828489235,6.2958,145.75,145.72,5.55296734]
[1750828494238,6.2958,145.75,145.7,25.51306684]
[1750828494423,6.2958,145.75,145.72,5.55296734]
[1750828496246,7.9895,145.78,145.74,5.55296734]
[1750828496541,7.9895,145.78,145.75,5.55296734]
[1750828497627,6.4588,145.78,145.75,12.41397484]
[1750828498530,6.4588,145.78,145.76,5.55296734]
[1750828502650,26.0,145.8,145.77,5.55296734]
[1750828502952,26.0,145.8,145.78,5.55296734]
[1750828503455,26.0,145.8,145.77,5.55296734]
[1750828503655,26.0,145.8,145.77,12.41307222]
[1750828504333,5.55296734,145.79,145.73,23.21391149]
[1750828504537,5.55296734,145.78,145.74,12.41450157]
[1750828508761,5.55296734,145.78,145.73,12.41486116]
[1750828508762,5.55296734,145.77,145.73,12.41486116]
[1750828509064,11.59736734,145.77,145.73,12.41486116]
[1750828509241,6.0444,145.77,145.73,12.41486116]
[1750828510268,11.59736734,145.77,145.73,5.55296734]
[1750828510470,11.59736734,145.77,145.72,12.41529134]
[1750828510769,5.55296734,145.76,145.72,12.41529134]
[1750828511866,5.55296734,145.76,145.72,6.862324]
[1750828512056,5.55296734,145.76,145.72,12.41529134]
[1750828514180,5.55296734,145.76,145.69,35.80934523]
[1750828514181,5.55296734,145.75,145.69,6.86388907]
[1750828514380,5.55296734,145.74,145.69,12.41685641]
[1750828514548,8.36460205,145.76,145.72,5.55296734]
[1750828514549,1.504,145.76,145.72,5.55296734]
[1750828514756,7.05696734,145.76,145.72,5.55296734]
[1750828515362,5.55296734,145.75,145.71,12.41550222]
[1750828516063,7.05696734,145.76,145.72,5.55296734]
[1750828516641,13.91761365,145.76,145.72,5.55296734]
[1750828519847,1.504,145.76,145.72,12.41539417]
[1750828520049,7.05696734,145.76,145.72,12.41539417]
[1750828520370,13.91758349,145.76,145.72,5.55296734]
[1750828522078,7.05696734,145.76,145.72,5.55296734]
[1750828524074,1.504,145.76,145.72,12.41519764]
[1750828525669,7.05696734,145.76,145.72,12.41519764]
[1750828525872,1.504,145.76,145.72,12.41519764]
[1750828528062,7.05696734,145.76,145.72,12.41519764]
[1750828528470,13.91762004,145.76,145.72,5.55296734]
[1750828529576,19.04536387,145.76,145.72,5.55296734]
[1750828530183,13.91762004,145.76,145.71,6.86278201]
[1750828530474,19.04544029,145.76,145.72,5.55296734]
[1750828530661,5.55296734,145.75,145.71,12.41574935]
[1750828532175,19.04544029,145.76,145.71,12.41574935]
[1750828532364,19.04544029,145.76,145.7,5.55296734]
[1750828532365,5.55296734,145.74,145.7,5.55296734]